lending/lending_fUSD_20250131
["ID","MTS","AMOUNT","RATE_DAILY","PERIOD"]
[351010946,1738285838714,-151.22142627,0.00019173,2]
[351010947,1738285838730,-306.74678501,0.00019173,2]
[351010948,1738285838740,-204.80713463,0.00019173,2]
[351010949,1738285838750,-150.0,0.00019175,2]
[351010950,1738285838760,-418.45789232,0.00019176,2]
[351010952,1738285838770,-277.89244696,0.00019176,2]
[351010954,1738285838780,-500.0,0.00019176,2]
[351010956,1738285838791,-998.96,0.00019177,2]
[351010958,1738285838801,-999.0,0.00019177,2]
[351010960,1738285838811,-194.01981657,0.00019177,2]
[351010962,1738285838822,-153.02512293,0.00019178,2]
[351010965,1738285838832,-1019.0,0.00019178,2]
[351010967,1738285838842,-443226.5610999,0.00019178,2]
[351010969,1738285838855,-50671.8423197,0.00019178,2]
[351010971,1738285838867,-178003.81241226,0.00019178,2]
[351010975,1738285838897,-26312.59843614,0.00019178,2]
[351010978,1738285838910,-19576.29258008,0.00019178,2]
[351010981,1738285838932,-3288.00000001,0.00019178,2]
[351011157,1738285840582,-110839.38458317,0.00019178,2]
[351011159,1738285840592,-558.9,0.00019178,2]
[351011161,1738285840602,-500.0,0.00019178,2]
[351011163,1738285840613,-667.67,0.00019178,2]
[351011165,1738285840623,-754.76,0.00019178,2]
[351011167,1738285840633,-500.0,0.00019178,2]
[351011169,1738285840643,-500.0,0.00019178,2]
[351011171,1738285840653,-556.35,0.00019178,2]
[351011173,1738285840663,-504.75877877,0.00019178,2]
[351011175,1738285840672,-500.0,0.00019178,2]
[351011177,1738285840682,-500.0,0.00019178,2]
[351011179,1738285840692,-1022.28,0.00019178,2]
[351011181,1738285840701,-500.0,0.00019178,2]
[351011183,1738285840711,-508.08274414,0.00019178,2]
[351011185,1738285840721,-500.0,0.00019178,2]
[351011187,1738285840731,-500.0,0.00019178,2]
[351011190,1738285840742,-510.81,0.00019178,2]
[351011192,1738285840754,-500.0,0.00019178,2]
[351011194,1738285840764,-500.0,0.00019178,2]
[351011196,1738285840773,-786.29,0.00019178,2]
[351011198,1738285840783,-500.0,0.00019178,2]
[351011200,1738285840792,-500.0,0.00019178,2]
[351011202,1738285840801,-548.19,0.00019178,2]
[351011204,1738285840811,-500.0,0.00019178,2]
[351011206,1738285840820,-500.0,0.00019178,2]
[351011208,1738285840830,-500.0,0.00019178,2]
[351011210,1738285840839,-500.0,0.00019178,2]
[351011212,1738285840849,-500.0,0.00019178,2]
[351011214,1738285840858,-500.0,0.00019178,2]
[351011216,1738285840867,-500.0,0.00019178,2]
[351011218,1738285840877,-500.0,0.00019178,2]
[351011220,1738285840887,-500.0,0.00019178,2]
[351011222,1738285840896,-500.0,0.00019178,2]
[351011224,1738285840906,-500.0,0.00019178,2]
[351011226,1738285840915,-500.0,0.00019178,2]
[351011228,1738285840925,-500.0,0.00019178,2]
[351011230,1738285840935,-500.0,0.00019178,2]
[351011232,1738285840945,-500.0,0.00019178,2]
[351011234,1738285840955,-526.2,0.00019178,2]
[351011236,1738285840965,-500.0,0.00019178,2]
[351011238,1738285840975,-500.0,0.00019178,2]
[351011240,1738285840984,-500.0,0.00019178,2]
[351011242,1738285840995,-500.0,0.00019178,2]
[351011244,1738285841008,-525.21,0.00019178,2]
[351011246,1738285841018,-443.38061831,0.00019178,2]
[351011248,1738285841028,-527.07,0.00019178,2]
[351011251,1738285841038,-745.17,0.00019178,2]
[351011253,1738285841049,-541.14008906,0.00019178,2]
[351011255,1738285841059,-925.47,0.00019178,2]
[351011257,1738285841069,-500.0,0.00019178,2]
[351011259,1738285841079,-500.0,0.00019178,2]
[351011261,1738285841089,-500.0,0.00019178,2]
[351011263,1738285841100,-2061.861226,0.00019178,2]
[351011265,1738285841111,-500.0,0.00019178,2]
[351011267,1738285841120,-1806.37,0.00019178,2]
[351011269,1738285841130,-591.54,0.00019178,2]
[351011271,1738285841140,-155.74606,0.00019178,2]
[351011273,1738285841149,-157.148379,0.00019178,2]
[351011275,1738285841159,-2053.2,0.00019178,2]
[351011277,1738285841168,-1698.45,0.00019178,2]
[351011279,1738285841177,-154.4946,0.00019178,2]
[351011281,1738285841186,-157.998727,0.00019178,2]
[351011283,1738285841197,-500.0,0.00019178,2]
[351011285,1738285841206,-500.0,0.00019178,2]
[351011287,1738285841215,-500.0,0.00019178,2]
[351011289,1738285841224,-651.45,0.00019178,2]
[351011291,1738285841234,-500.0,0.00019178,2]
[351011293,1738285841243,-559.93,0.00019178,2]
[351011295,1738285841256,-500.0,0.00019178,2]
[351011297,1738285841266,-500.0,0.00019178,2]
[351011299,1738285841275,-500.0,0.00019178,2]
[351011301,1738285841285,-500.0,0.00019178,2]
[351011303,1738285841294,-1256.13,0.00019178,2]
[351011305,1738285841304,-599.1,0.00019178,2]
[351011307,1738285841313,-500.0,0.00019178,2]
[351011309,1738285841323,-500.0,0.00019178,2]
[351011311,1738285841333,-2658.898062,0.00019178,2]
[351011313,1738285841342,-500.0,0.00019178,2]
[351011315,1738285841351,-1261.22,0.00019178,2]
[351011317,1738285841362,-373.90536712,0.00019178,2]
[351011319,1738285841374,-500.0,0.00019178,2]
[351011321,1738285841383,-1053.91,0.00019178,2]
[351011323,1738285841392,-500.0,0.00019178,2]
[351011325,1738285841402,-500.0,0.00019178,2]
[351011327,1738285841413,-2378.33,0.00019178,2]
[351011329,1738285841422,-500.0,0.00019178,2]
[351011331,1738285841432,-1647.42,0.00019178,2]
[351011333,1738285841442,-528.13,0.00019178,2]
[351011335,1738285841452,-500.0,0.00019178,2]
[351011337,1738285841462,-500.0,0.00019178,2]
[351011339,1738285841471,-500.0,0.00019178,2]
[351011341,1738285841480,-830.8,0.00019178,2]
[351011343,1738285841490,-646.58,0.00019178,2]
[351011345,1738285841501,-500.0,0.00019178,2]
[351011347,1738285841513,-500.0,0.00019178,2]
[351011349,1738285841523,-361.74147625,0.00019178,2]
[351011351,1738285841533,-1768.56,0.00019178,2]
[351011353,1738285841544,-827.02,0.00019178,2]
[351011356,1738285841553,-500.0,0.00019178,2]
[351011358,1738285841563,-500.0,0.00019178,2]
[351011360,1738285841573,-500.0,0.00019178,2]
[351011361,1738285841582,-500.0,0.00019178,2]
[351011364,1738285841592,-500.0,0.00019178,2]
[351011366,1738285841602,-500.0,0.00019178,2]
[351011368,1738285841612,-502.16226676,0.00019178,2]
[351011370,1738285841621,-1180.08,0.00019178,2]
[351011371,1738285841631,-508.57982834,0.00019178,2]
[351011373,1738285841641,-500.0,0.00019178,2]
[351011375,1738285841650,-1257.92,0.00019178,2]
[351011377,1738285841660,-272.15566251,0.00019178,2]
[351011380,1738285841670,-500.0,0.00019178,2]
[351011382,1738285841679,-1066.59,0.00019178,2]
[351011384,1738285841689,-500.0,0.00019178,2]
[351011385,1738285841698,-500.0,0.00019178,2]
[351011388,1738285841708,-500.0,0.00019178,2]
[351011390,1738285841717,-673.01,0.00019178,2]
[351011392,1738285841726,-500.0,0.00019178,2]
[351011394,1738285841736,-159.317441,0.00019178,2]
[351011396,1738285841745,-500.0,0.00019178,2]
[351011398,1738285841756,-2355.23,0.00019178,2]
[351011400,1738285841766,-500.0,0.00019178,2]
[351011402,1738285841776,-500.0,0.00019178,2]
[351011404,1738285841786,-811.38,0.00019178,2]
[351011406,1738285841795,-500.0,0.00019178,2]
[351011408,1738285841805,-500.0,0.00019178,2]
[351011409,1738285841815,-882.78,0.00019178,2]
[351011410,1738285841825,-500.0,0.00019178,2]
[351011411,1738285841836,-501.31,0.00019178,2]
[351011412,1738285841846,-500.0,0.00019178,2]
[351011413,1738285841855,-500.0,0.00019178,2]
[351011414,1738285841865,-500.0,0.00019178,2]
[351011415,1738285841875,-500.0,0.00019178,2]
[351011416,1738285841885,-500.0,0.00019178,2]
[351011417,1738285841895,-500.0,0.00019178,2]
[351011418,1738285841905,-500.0,0.00019178,2]
[351011419,1738285841915,-1154.0,0.00019178,2]
[351011420,1738285841925,-500.0,0.00019178,2]
[351011422,1738285841935,-500.0,0.00019178,2]
[351011424,1738285841945,-500.0,0.00019178,2]
[351011426,1738285841955,-1504.22,0.00019178,2]
[351011428,1738285841965,-842.84,0.00019178,2]
[351011430,1738285841975,-785.04,0.00019178,2]
[351011432,1738285841985,-500.0,0.00019178,2]
[351011434,1738285841994,-500.0,0.00019178,2]
[351011436,1738285842004,-500.0,0.00019178,2]
[351011438,1738285842014,-500.0,0.00019178,2]
[351011440,1738285842023,-500.0,0.00019178,2]
[351011442,1738285842034,-500.0,0.00019178,2]
[351011445,1738285842044,-1047.38,0.00019178,2]
[351011447,1738285842053,-500.0,0.00019178,2]
[351011449,1738285842063,-500.0,0.00019178,2]
[351011451,1738285842072,-883.19,0.00019178,2]
[351011453,1738285842081,-500.0,0.00019178,2]
[351011455,1738285842090,-1659.64,0.00019178,2]
[351011457,1738285842100,-500.0,0.00019178,2]
[351011459,1738285842110,-500.0,0.00019178,2]
[351011461,1738285842120,-500.0,0.00019178,2]
[351011463,1738285842129,-500.0,0.00019178,2]
[351011464,1738285842138,-500.0,0.00019178,2]
[351011467,1738285842149,-500.0,0.00019178,2]
[351011469,1738285842158,-504.82022812,0.00019178,2]
[351011471,1738285842167,-500.0,0.00019178,2]
[351011473,1738285842177,-630.33,0.00019178,2]
[351011475,1738285842187,-769.55,0.00019178,2]
[351011476,1738285842196,-500.0,0.00019178,2]
[351011479,1738285842206,-855.99,0.00019178,2]
[351011481,1738285842217,-502.37758404,0.00019178,2]
[351011483,1738285842226,-1537.34,0.00019178,2]
[351011485,1738285842236,-490.01960439,0.00019178,2]
[351011487,1738285842246,-942.97,0.00019178,2]
[351011489,1738285842258,-500.0,0.00019178,2]
[351011491,1738285842267,-165.46279584,0.00019178,2]
[351011493,1738285842277,-779.19,0.00019178,2]
[351011494,1738285842286,-500.0,0.00019178,2]
[351011496,1738285842295,-668.93,0.00019178,2]
[351011498,1738285842304,-500.0,0.00019178,2]
[351011500,1738285842313,-500.0,0.00019178,2]
[351011502,1738285842323,-571.93,0.00019178,2]
[351011504,1738285842332,-500.0,0.00019178,2]
[351011506,1738285842341,-663.1,0.00019178,2]
[351011508,1738285842351,-500.0,0.00019178,2]
[351011510,1738285842361,-500.0,0.00019178,2]
[351011512,1738285842373,-500.0,0.00019178,2]
[351011514,1738285842382,-500.0,0.00019178,2]
[351011516,1738285842392,-506.39178752,0.00019178,2]
[351011519,1738285842403,-500.0,0.00019178,2]
[351011520,1738285842412,-1241.02,0.00019178,2]
[351011523,1738285842422,-987.56,0.00019178,2]
[351011525,1738285842431,-500.0,0.00019178,2]
[351011527,1738285842440,-500.0,0.00019178,2]
[351011529,1738285842452,-768.56,0.00019178,2]
[351011531,1738285842461,-500.0,0.00019178,2]
[351011533,1738285842471,-500.0,0.00019178,2]
[351011535,1738285842481,-1033.99,0.00019178,2]
[351011537,1738285842490,-500.0,0.00019178,2]
[351011539,1738285842499,-500.0,0.00019178,2]
[351011541,1738285842514,-680.74,0.00019178,2]
[351011543,1738285842523,-698.59,0.00019178,2]
[351011545,1738285842532,-823.59,0.00019178,2]
[351011547,1738285842542,-500.0,0.00019178,2]
[351011549,1738285842551,-500.0,0.00019178,2]
[351011551,1738285842560,-500.0,0.00019178,2]
[351011553,1738285842570,-500.0,0.00019178,2]
[351011555,1738285842579,-500.0,0.00019178,2]
[351011557,1738285842589,-519.19,0.00019178,2]
[351011559,1738285842598,-500.0,0.00019178,2]
[351011561,1738285842607,-203.2799019,0.00019178,2]
[351011563,1738285842617,-1495.48,0.00019178,2]
[351011565,1738285842627,-500.0,0.00019178,2]
[351011567,1738285842636,-1856.45,0.00019178,2]
[351011569,1738285842645,-817.5,0.00019178,2]
[351011571,1738285842655,-500.0,0.00019178,2]
[351011573,1738285842665,-541.02,0.00019178,2]
[351011575,1738285842674,-1287.68,0.00019178,2]
[351011577,1738285842684,-1322.62,0.00019178,2]
[351011579,1738285842693,-524.86,0.00019178,2]
[351011581,1738285842702,-770.69,0.00019178,2]
[351011583,1738285842711,-1287.13,0.00019178,2]
[351011586,1738285842721,-500.0,0.00019178,2]
[351011588,1738285842731,-500.0,0.00019178,2]
[351011590,1738285842740,-798.55,0.00019178,2]
[351011592,1738285842749,-500.0,0.00019178,2]
[351011594,1738285842761,-500.0,0.00019178,2]
[351011596,1738285842770,-577.42,0.00019178,2]
[351011598,1738285842779,-663.8,0.00019178,2]
[351011600,1738285842788,-663.87,0.00019178,2]
[351011602,1738285842797,-500.0,0.00019178,2]
[351011604,1738285842807,-842.35,0.00019178,2]
[351011606,1738285842816,-290.14759122,0.00019178,2]
[351011608,1738285842825,-500.0,0.00019178,2]
[351011610,1738285842834,-901.5,0.00019178,2]
[351011612,1738285842843,-500.0,0.00019178,2]
[351011614,1738285842852,-1267.32,0.00019178,2]
[351011616,1738285842861,-500.0,0.00019178,2]
[351011618,1738285842870,-500.0,0.00019178,2]
[351011620,1738285842879,-500.0,0.00019178,2]
[351011622,1738285842889,-500.0,0.00019178,2]
[351011624,1738285842898,-766.4,0.00019178,2]
[351011626,1738285842907,-1330.28,0.00019178,2]
[351011628,1738285842916,-500.0,0.00019178,2]
[351011630,1738285842925,-818.28,0.00019178,2]
[351011632,1738285842935,-769.31,0.00019178,2]
[351011634,1738285842944,-1212.17,0.00019178,2]
[351011636,1738285842953,-500.0,0.00019178,2]
[351011638,1738285842963,-859.73,0.00019178,2]
[351011640,1738285842972,-500.0,0.00019178,2]
[351011642,1738285842982,-1432.59,0.00019178,2]
[351011644,1738285842991,-500.0,0.00019178,2]
[351011647,1738285843001,-520.67731626,0.00019178,2]
[351011649,1738285843012,-2255.84,0.00019178,2]
[351011651,1738285843022,-500.0,0.00019178,2]
[351011653,1738285843031,-500.0,0.00019178,2]
[351011656,1738285843042,-941.73,0.00019178,2]
[351011659,1738285843051,-500.0,0.00019178,2]
[351011662,1738285843061,-2158.98,0.00019178,2]
[351011664,1738285843070,-854.5,0.00019178,2]
[351011666,1738285843079,-500.0,0.00019178,2]
[351011668,1738285843089,-610.57,0.00019178,2]
[351011670,1738285843098,-500.0,0.00019178,2]
[351011672,1738285843107,-787.72,0.00019178,2]
[351011674,1738285843116,-500.0,0.00019178,2]
[351011676,1738285843126,-785.53,0.00019178,2]
[351011678,1738285843136,-500.0,0.00019178,2]
[351011680,1738285843145,-787.64,0.00019178,2]
[351011683,1738285843154,-500.0,0.00019178,2]
[351011686,1738285843164,-500.0,0.00019178,2]
[351011689,1738285843173,-176.80096309,0.00019178,2]
[351011692,1738285843182,-851.84,0.00019178,2]
[351011694,1738285843191,-794.18,0.00019178,2]
[351011697,1738285843201,-571.9634671,0.00019178,2]
[351011699,1738285843210,-500.0,0.00019178,2]
[351011702,1738285843219,-500.0,0.00019178,2]
[351011704,1738285843228,-500.0,0.00019178,2]
[351011706,1738285843237,-500.0,0.00019178,2]
[351011708,1738285843247,-545.08538324,0.00019178,2]
[351011711,1738285843257,-524.94229381,0.00019178,2]
[351011713,1738285843267,-500.0,0.00019178,2]
[351011715,1738285843276,-500.0,0.00019178,2]
[351011717,1738285843285,-500.0,0.00019178,2]
[351011719,1738285843294,-500.0,0.00019178,2]
[351011721,1738285843303,-500.0,0.00019178,2]
[351011723,1738285843313,-502.89553674,0.00019178,2]
[351011725,1738285843322,-500.0,0.00019178,2]
[351011727,1738285843331,-500.0,0.00019178,2]
[351011729,1738285843340,-500.0,0.00019178,2]
[351011731,1738285843349,-1154.89,0.00019178,2]
[351011733,1738285843359,-871.32,0.00019178,2]
[351011735,1738285843372,-500.0,0.00019178,2]
[351011737,1738285843381,-500.0,0.00019178,2]
[351011739,1738285843390,-500.0,0.00019178,2]
[351011741,1738285843401,-540.08,0.00019178,2]
[351011743,1738285843410,-500.0,0.00019178,2]
[351011745,1738285843419,-500.0,0.00019178,2]
[351011747,1738285843429,-500.0,0.00019178,2]
[351011749,1738285843439,-500.0,0.00019178,2]
[351011751,1738285843449,-500.0,0.00019178,2]
[351011753,1738285843458,-1399.31,0.00019178,2]
[351011755,1738285843468,-500.0,0.00019178,2]
[351011757,1738285843477,-762.2,0.00019178,2]
[351011759,1738285843486,-500.0,0.00019178,2]
[351011761,1738285843496,-500.0,0.00019178,2]
[351011764,1738285843507,-1217.42,0.00019178,2]
[351011766,1738285843517,-1176.02,0.00019178,2]
[351011768,1738285843527,-500.0,0.00019178,2]
[351011770,1738285843536,-500.0,0.00019178,2]
[351011772,1738285843545,-500.0,0.00019178,2]
[351011774,1738285843555,-500.0,0.00019178,2]
[351011776,1738285843565,-500.0,0.00019178,2]
[351011778,1738285843574,-500.0,0.00019178,2]
[351011780,1738285843583,-1410.67,0.00019178,2]
[351011782,1738285843593,-1838.6,0.00019178,2]
[351011784,1738285843602,-500.0,0.00019178,2]
[351011786,1738285843612,-500.0,0.00019178,2]
[351011788,1738285843621,-500.0,0.00019178,2]
[351011790,1738285843630,-500.0,0.00019178,2]
[351011792,1738285843639,-1352.89,0.00019178,2]
[351011794,1738285843647,-821.89,0.00019178,2]
[351011796,1738285843658,-1048.21,0.00019178,2]
[351011798,1738285843667,-200.0,0.00019178,2]
[351011800,1738285843676,-500.0,0.00019178,2]
[351011802,1738285843685,-635.93,0.00019178,2]
[351011804,1738285843695,-746.06,0.00019178,2]
[351011806,1738285843704,-500.0,0.00019178,2]
[351011808,1738285843713,-2266.73,0.00019178,2]
[351011810,1738285843722,-500.0,0.00019178,2]
[351011812,1738285843732,-500.0,0.00019178,2]
[351011814,1738285843741,-500.0,0.00019178,2]
[351011816,1738285843751,-500.0,0.00019178,2]
[351011818,1738285843762,-500.0,0.00019178,2]
[351011820,1738285843772,-348.94448222,0.00019178,2]
[351011822,1738285843781,-500.0,0.00019178,2]
[351011824,1738285843791,-614.07,0.00019178,2]
[351011856,1738285844036,-636.84,0.00019178,2]
[351011858,1738285844047,-500.0,0.00019178,2]
[351011860,1738285844057,-500.0,0.00019178,2]
[351011862,1738285844067,-1193.64,0.00019178,2]
[351011864,1738285844077,-500.0,0.00019178,2]
[351011866,1738285844087,-1736.38,0.00019178,2]
[351011868,1738285844097,-500.0,0.00019178,2]
[351011871,1738285844106,-500.0,0.00019178,2]
[351011874,1738285844116,-1454.94,0.00019178,2]
[351011877,1738285844125,-500.0,0.00019178,2]
[351011880,1738285844135,-522.48895449,0.00019178,2]
[351011883,1738285844144,-500.0,0.00019178,2]
[351011886,1738285844153,-500.0,0.00019178,2]
[351011889,1738285844163,-500.0,0.00019178,2]
[351011892,1738285844173,-500.0,0.00019178,2]
[351011895,1738285844195,-2203.01,0.00019178,2]
[351011899,1738285844210,-943.57,0.00019178,2]
[351011902,1738285844220,-500.0,0.00019178,2]
[351011905,1738285844230,-500.0,0.00019178,2]
[351011908,1738285844241,-1084.41,0.00019178,2]
[351011910,1738285844252,-1096.55,0.00019178,2]
[351011912,1738285844262,-500.0,0.00019178,2]
[351011914,1738285844273,-500.0,0.00019178,2]
[351011917,1738285844283,-500.0,0.00019178,2]
[351011919,1738285844293,-500.0,0.00019178,2]
[351011921,1738285844303,-934.13,0.00019178,2]
[351011923,1738285844314,-500.0,0.00019178,2]
[351011925,1738285844325,-1162.28,0.00019178,2]
[351011927,1738285844334,-500.0,0.00019178,2]
[351011929,1738285844345,-500.0,0.00019178,2]
[351011931,1738285844355,-500.0,0.00019178,2]
[351011933,1738285844368,-500.0,0.00019178,2]
[351011935,1738285844378,-500.0,0.00019178,2]
[351011937,1738285844387,-1739.99,0.00019178,2]
[351011939,1738285844397,-500.0,0.00019178,2]
[351011941,1738285844408,-432.69614992,0.00019178,2]
[351011943,1738285844418,-1766.59,0.00019178,2]
[351011946,1738285844427,-692.74,0.00019178,2]
[351011948,1738285844439,-1087.4,0.00019178,2]
[351011950,1738285844449,-346.69845076,0.00019178,2]
[351011952,1738285844459,-500.0,0.00019178,2]
[351011954,1738285844468,-2396.16,0.00019178,2]
[351011956,1738285844477,-500.0,0.00019178,2]
[351011958,1738285844486,-500.0,0.00019178,2]
[351011960,1738285844496,-500.0,0.00019178,2]
[351011962,1738285844506,-500.0,0.00019178,2]
[351011964,1738285844515,-644.53,0.00019178,2]
[351011966,1738285844525,-500.0,0.00019178,2]
[351011968,1738285844535,-500.0,0.00019178,2]
[351011970,1738285844544,-157.845379,0.00019178,2]
[351011972,1738285844554,-1569.12,0.00019178,2]
[351011974,1738285844563,-1511.58,0.00019178,2]
[351011976,1738285844572,-502.21908497,0.00019178,2]
[351011978,1738285844582,-500.0,0.00019178,2]
[351011980,1738285844591,-500.0,0.00019178,2]
[351011982,1738285844601,-1237.69,0.00019178,2]
[351011984,1738285844610,-500.0,0.00019178,2]
[351011986,1738285844620,-731.45,0.00019178,2]
[351011988,1738285844629,-500.0,0.00019178,2]
[351011990,1738285844638,-500.0,0.00019178,2]
[351011992,1738285844648,-616.81058994,0.00019178,2]
[351011994,1738285844657,-500.0,0.00019178,2]
[351011996,1738285844667,-573.71,0.00019178,2]
[351011998,1738285844677,-500.0,0.00019178,2]
[351012000,1738285844687,-785.46,0.00019178,2]
[351012002,1738285844696,-500.0,0.00019178,2]
[351012004,1738285844706,-928.04,0.00019178,2]
[351012006,1738285844716,-2587.92,0.00019178,2]
[351012008,1738285844725,-1392.4,0.00019178,2]
[351012010,1738285844734,-500.0,0.00019178,2]
[351012012,1738285844743,-597.63,0.00019178,2]
[351012015,1738285844753,-500.0,0.00019178,2]
[351012017,1738285844763,-500.0,0.00019178,2]
[351012019,1738285844772,-794.48,0.00019178,2]
[351012021,1738285844781,-1241.83,0.00019178,2]
[351012023,1738285844790,-500.0,0.00019178,2]
[351012025,1738285844799,-500.0,0.00019178,2]
[351012027,1738285844809,-1044.78,0.00019178,2]
[351012029,1738285844818,-500.0,0.00019178,2]
[351012031,1738285844828,-2225.42,0.00019178,2]
[351012033,1738285844837,-500.0,0.00019178,2]
[351012035,1738285844847,-1959.38,0.00019178,2]
[351012037,1738285844856,-1122.77,0.00019178,2]
[351012039,1738285844865,-500.0,0.00019178,2]
[351012041,1738285844875,-500.0,0.00019178,2]
[351012043,1738285844884,-500.0,0.00019178,2]
[351012045,1738285844894,-500.0,0.00019178,2]
[351012047,1738285844903,-500.0,0.00019178,2]
[351012049,1738285844912,-4658.97,0.00019178,2]
[351012051,1738285844921,-500.0,0.00019178,2]
[351012053,1738285844931,-500.0,0.00019178,2]
[351012055,1738285844940,-505.70375404,0.00019178,2]
[351012057,1738285844950,-778.14,0.00019178,2]
[351012059,1738285844960,-2475.53,0.00019178,2]
[351012061,1738285844969,-500.0,0.00019178,2]
[351012063,1738285844979,-954.41,0.00019178,2]
[351012065,1738285844988,-501.15187847,0.00019178,2]
[351012067,1738285844998,-629.534239,0.00019178,2]
[351012069,1738285845009,-2890.46,0.00019178,2]
[351012071,1738285845018,-500.0,0.00019178,2]
[351012072,1738285845028,-850.69,0.00019178,2]
[351012073,1738285845037,-500.0,0.00019178,2]
[351012074,1738285845047,-1690.27,0.00019178,2]
[351012075,1738285845059,-691.53,0.00019178,2]
[351012076,1738285845069,-530.35832737,0.00019178,2]
[351012077,1738285845078,-500.0,0.00019178,2]
[351012078,1738285845088,-4092.99,0.00019178,2]
[351012079,1738285845098,-787.68,0.00019178,2]
[351012080,1738285845107,-779.0,0.00019178,2]
[351012081,1738285845117,-872.67,0.00019178,2]
[351012082,1738285845126,-500.0,0.00019178,2]
[351012084,1738285845136,-500.0,0.00019178,2]
[351012086,1738285845146,-2338.19,0.00019178,2]
[351012088,1738285845156,-500.0,0.00019178,2]
[351012090,1738285845165,-500.0,0.00019178,2]
[351012092,1738285845175,-3000.0,0.00019178,2]
[351012094,1738285845184,-779.31,0.00019178,2]
[351012096,1738285845194,-500.0,0.00019178,2]
[351012098,1738285845203,-1514.35,0.00019178,2]
[351012100,1738285845212,-551.05,0.00019178,2]
[351012102,1738285845221,-9433.97,0.00019178,2]
[351012104,1738285845231,-500.0,0.00019178,2]
[351012106,1738285845240,-1582.96,0.00019178,2]
[351012108,1738285845249,-575.87294424,0.00019178,2]
[351012110,1738285845260,-564.27,0.00019178,2]
[351012112,1738285845270,-347.31888726,0.00019178,2]
[351012115,1738285845280,-500.0,0.00019178,2]
[351012117,1738285845290,-2958.05,0.00019178,2]
[351012119,1738285845299,-1015.6,0.00019178,2]
[351012121,1738285845309,-500.0,0.00019178,2]
[351012123,1738285845318,-1886.96,0.00019178,2]
[351012125,1738285845327,-1396.92,0.00019178,2]
[351012127,1738285845336,-23990.2,0.00019178,2]
[351012129,1738285845346,-890.69,0.00019178,2]
[351012131,1738285845356,-500.0,0.00019178,2]
[351012133,1738285845367,-500.0,0.00019178,2]
[351012135,1738285845378,-6864.1,0.00019178,2]
[351012137,1738285845388,-928.64,0.00019178,2]
[351012139,1738285845397,-500.0,0.00019178,2]
[351012141,1738285845407,-336.86966848,0.00019178,2]
[351012143,1738285845416,-1790.74,0.00019178,2]
[351012145,1738285845425,-528.04493386,0.00019178,2]
[351012147,1738285845435,-500.0,0.00019178,2]
[351012149,1738285845445,-1548.01,0.00019178,2]
[351012151,1738285845454,-500.0,0.00019178,2]
[351012153,1738285845464,-500.0,0.00019178,2]
[351012155,1738285845474,-3369.13,0.00019178,2]
[351012157,1738285845483,-2226.7,0.00019178,2]
[351012159,1738285845493,-594.92499985,0.00019178,2]
[351012161,1738285845502,-511.08266642,0.00019178,2]